[Event "Live Chess"]
[Site "Chess.com"]
[Date "2024.06.02"]
[Round "-"]
[White "FlyingChessKestrel13"]
[Black "yarek"]
[Result "1-0"]
[WhiteElo "2078"]
[BlackElo "1750"]
[TimeControl "300"]
[EndTime "4:50:58 PDT"]
[Termination "FlyingChessKestrel13 won by resignation"]

1. e4 {[%clk 0:04:57.7]} 1... g6 {[%clk 0:04:57.5]} 2. Nf3 {[%clk 0:04:57.3]}
2... Bg7 {[%clk 0:04:54.6]} 3. d4 {[%clk 0:04:56.8]} 3... c6 {[%clk 0:04:53.6]}
4. c4 {[%clk 0:04:55.4]} 4... d5 {[%clk 0:04:52.6]} 5. cxd5 {[%clk 0:04:54.2]}
5... cxd5 {[%clk 0:04:51.2]} 6. e5 {[%clk 0:04:54.1]} 6... e6 {[%clk 0:04:49.7]}
7. Nc3 {[%clk 0:04:53.2]} 7... Ne7 {[%clk 0:04:49.2]} 8. Bg5 {[%clk 0:04:52.2]}
8... a6 {[%clk 0:04:46.9]} 9. Bd3 {[%clk 0:04:49.5]} 9... h6 {[%clk 0:04:45.3]}
10. Bh4 {[%clk 0:04:47.3]} 10... O-O {[%clk 0:04:43.4]} 11. O-O {[%clk
0:04:46.2]} 11... Bd7 {[%clk 0:04:40.2]} 12. Qd2 {[%clk 0:04:44.4]} 12... Kh7
{[%clk 0:04:37.5]} 13. g4 {[%clk 0:04:39.7]} 13... Nbc6 {[%clk 0:04:33.3]} 14.
Qe3 {[%clk 0:04:32.1]} 14... Qb6 {[%clk 0:04:21.4]} 15. Rab1 {[%clk 0:04:23.5]}
15... Rac8 {[%clk 0:03:59.6]} 16. Bg3 {[%clk 0:04:13.1]} 16... Nb4 {[%clk
0:03:45.2]} 17. Be2 {[%clk 0:04:06.8]} 17... Bb5 {[%clk 0:03:41.5]} 18. Bxb5
{[%clk 0:04:04.7]} 18... axb5 {[%clk 0:03:41.1]} 19. h4 {[%clk 0:04:01.2]} 19...
Ra8 {[%clk 0:03:27.2]} 20. Kg2 {[%clk 0:03:57.9]} 20... Nxa2 {[%clk 0:03:23]}
21. Nxa2 {[%clk 0:03:55.4]} 21... Rxa2 {[%clk 0:03:22.6]} 22. h5 {[%clk
0:03:51.2]} 22... Rc8 {[%clk 0:03:06.4]} 23. hxg6+ {[%clk 0:03:46.8]} 23... fxg6
{[%clk 0:03:01.2]} 24. Rh1 {[%clk 0:03:46.3]} 24... Rc2 {[%clk 0:02:48.9]} 25.
Bf4 {[%clk 0:03:37.9]} 25... Raxb2 {[%clk 0:02:42.7]} 26. Rxb2 {[%clk
0:03:36.3]} 26... Rxb2 {[%clk 0:02:40.9]} 27. Bxh6 {[%clk 0:03:35]} 27... Ng8
{[%clk 0:02:17.7]} 28. Ng5+ {[%clk 0:03:32.9]} 28... Kh8 {[%clk 0:02:14.6]} 29.
Nf7+ {[%clk 0:03:27.2]} 29... Kh7 {[%clk 0:02:11.4]} 30. Bg5+ {[%clk 0:03:25.8]}
30... Nh6 {[%clk 0:02:04.6]} 31. Nxh6 {[%clk 0:03:22.6]} 31... Bxh6 {[%clk
0:02:01.9]} 32. Rxh6+ {[%clk 0:03:21]} 32... Kg7 {[%clk 0:01:59.4]} 33. Bf6+
{[%clk 0:03:18]} 33... Kf7 {[%clk 0:01:59]} 34. Rh7+ {[%clk 0:03:16.8]} 34...
Ke8 {[%clk 0:01:57.8]} 35. Qh6 {[%clk 0:03:13.7]} 35... Rxf2+ {[%clk 0:01:51.4]}
36. Kxf2 {[%clk 0:03:11.3]} 36... Qxd4+ {[%clk 0:01:50.9]} 37. Qe3 {[%clk
0:03:04.8]} 37... Qxg4 {[%clk 0:01:46.6]} 38. Re7+ {[%clk 0:02:57.7]} 38... Kf8
{[%clk 0:01:44.9]} 39. Qf3 {[%clk 0:02:56.5]} 39... Qd4+ {[%clk 0:01:39.6]} 40.
Kg2 {[%clk 0:02:55.2]} 40... Qd2+ {[%clk 0:01:30.3]} 41. Qf2 {[%clk 0:02:53.1]}
1-0

[Event "Live Chess"]
[Site "Chess.com"]
[Date "2024.06.02"]
[Round "-"]
[White "missedJariChance"]
[Black "booktrunk"]
[Result "0-1"]
[WhiteElo "1356"]
[BlackElo "1493"]
[TimeControl "300"]
[EndTime "4:51:06 PDT"]
[Termination "booktrunk won by checkmate"]

1. b3 {[%clk 0:04:55.5]} 1... e6 {[%clk 0:04:54.6]} 2. Bb2 {[%clk 0:04:51.4]}
2... h6 {[%clk 0:04:49.5]} 3. Nf3 {[%clk 0:04:47.2]} 3... b6 {[%clk 0:04:48.2]}
4. e3 {[%clk 0:04:45.5]} 4... Bb7 {[%clk 0:04:48.1]} 5. Be2 {[%clk 0:04:43.7]}
5... Nf6 {[%clk 0:04:36.6]} 6. O-O {[%clk 0:04:40.5]} 6... Be7 {[%clk
0:04:31.3]} 7. d4 {[%clk 0:04:39]} 7... O-O {[%clk 0:04:29.6]} 8. c4 {[%clk
0:04:37.6]} 8... d5 {[%clk 0:04:26.9]} 9. cxd5 {[%clk 0:04:29.9]} 9... Bxd5
{[%clk 0:04:15.5]} 10. Nbd2 {[%clk 0:04:20.2]} 10... Nbd7 {[%clk 0:04:09.1]} 11.
Rc1 {[%clk 0:04:17.5]} 11... Rc8 {[%clk 0:04:05.9]} 12. Bd3 {[%clk 0:04:05.6]}
12... c5 {[%clk 0:04:00.9]} 13. e4 {[%clk 0:03:59.7]} 13... Bb7 {[%clk
0:03:57.2]} 14. e5 {[%clk 0:03:24.4]} 14... Nd5 {[%clk 0:03:43.2]} 15. dxc5
{[%clk 0:03:19.1]} 15... Nxc5 {[%clk 0:03:39.7]} 16. Bb1 {[%clk 0:03:07.8]}
16... Nf4 {[%clk 0:03:34.3]} 17. Re1 {[%clk 0:03:01.1]} 17... Nfd3 {[%clk
0:03:30]} 18. Bxd3 {[%clk 0:02:50.9]} 18... Nxd3 {[%clk 0:03:27.7]} 19. Rxc8
{[%clk 0:02:48.5]} 19... Qxc8 {[%clk 0:03:26.3]} 20. Ba1 {[%clk 0:02:09.9]}
20... Nxe1 {[%clk 0:03:24.2]} 21. Qxe1 {[%clk 0:02:08.9]} 21... Bb4 {[%clk
0:03:22.4]} 22. Qb1 {[%clk 0:01:56.4]} 22... Rd8 {[%clk 0:03:18.2]} 23. Nc4
{[%clk 0:01:49.3]} 23... Qd7 {[%clk 0:03:09.9]} 24. Ne3 {[%clk 0:01:29.8]} 24...
Bd2 {[%clk 0:03:01.2]} 25. Nxd2 {[%clk 0:01:21.1]} 25... Qxd2 {[%clk 0:02:57.6]}
26. h3 {[%clk 0:01:17.3]} 26... Qd3 {[%clk 0:02:50.2]} 27. Qe1 {[%clk 0:01:06]}
27... Qd2 {[%clk 0:02:37.2]} 28. Qb1 {[%clk 0:00:56.9]} 28... Rc8 {[%clk
0:02:30.2]} 29. Bb2 {[%clk 0:00:53.3]} 29... g6 {[%clk 0:02:22]} 30. Nc4 {[%clk
0:00:48.9]} 30... Qd5 {[%clk 0:02:12.1]} 31. Nd6 {[%clk 0:00:45.3]} 31... Qxg2#
{[%clk 0:02:09.1]} 0-1

[Event "Live Chess"]
[Site "Chess.com"]
[Date "2024.06.02"]
[Round "-"]
[White "KeithArkell"]
[Black "blunderabit"]
[Result "1-0"]
[WhiteElo "2428"]
[BlackElo "1774"]
[TimeControl "300"]
[EndTime "4:51:10 PDT"]
[Termination "KeithArkell won by resignation"]

1. d4 {[%clk 0:04:57.9]} 1... d5 {[%clk 0:04:56.7]} 2. Nf3 {[%clk 0:04:57.2]}
2... Nf6 {[%clk 0:04:54.6]} 3. c4 {[%clk 0:04:57.1]} 3... dxc4 {[%clk
0:04:53.3]} 4. e3 {[%clk 0:04:55.5]} 4... b5 {[%clk 0:04:52.8]} 5. a4 {[%clk
0:04:53.8]} 5... b4 {[%clk 0:04:51.6]} 6. Bxc4 {[%clk 0:04:52.2]} 6... e6 {[%clk
0:04:50.7]} 7. b3 {[%clk 0:04:50.2]} 7... Be7 {[%clk 0:04:47.8]} 8. Bb2 {[%clk
0:04:49.5]} 8... Bb7 {[%clk 0:04:38.5]} 9. Nbd2 {[%clk 0:04:49.4]} 9... O-O
{[%clk 0:04:31.3]} 10. O-O {[%clk 0:04:48.4]} 10... c5 {[%clk 0:04:29.8]} 11.
dxc5 {[%clk 0:04:45.8]} 11... Nbd7 {[%clk 0:04:23.7]} 12. c6 {[%clk 0:04:42.1]}
12... Bxc6 {[%clk 0:04:21.3]} 13. Rc1 {[%clk 0:04:41.8]} 13... Qb6 {[%clk
0:04:12.8]} 14. Qe2 {[%clk 0:04:38.8]} 14... a6 {[%clk 0:04:03.7]} 15. Rfd1
{[%clk 0:04:36.6]} 15... Rfc8 {[%clk 0:03:49.5]} 16. Ne5 {[%clk 0:04:35.1]}
16... Nxe5 {[%clk 0:03:46.7]} 17. Bxe5 {[%clk 0:04:34.4]} 17... Qb7 {[%clk
0:03:35.1]} 18. f3 {[%clk 0:04:32.2]} 18... Bd5 {[%clk 0:03:07.4]} 19. Bxf6
{[%clk 0:04:23.5]} 19... Bxf6 {[%clk 0:02:58.5]} 20. e4 {[%clk 0:04:21.5]} 20...
Bxc4 {[%clk 0:02:32.4]} 21. Nxc4 {[%clk 0:04:18.1]} 21... Bc3 {[%clk 0:02:21.1]}
22. Qe3 {[%clk 0:04:12.4]} 22... Qa7 {[%clk 0:02:18.9]} 23. Qxa7 {[%clk
0:04:10.5]} 23... Rxa7 {[%clk 0:02:16.6]} 24. Rd3 {[%clk 0:04:09]} 24... Kf8
{[%clk 0:02:09]} 25. Rcd1 {[%clk 0:04:08.1]} 25... Ke7 {[%clk 0:02:07.5]} 26.
Kf2 {[%clk 0:04:07.5]} 26... Rcc7 {[%clk 0:02:02.1]} 27. Ke2 {[%clk 0:04:06.3]}
27... Rd7 {[%clk 0:02:00.7]} 28. Rxd7+ {[%clk 0:04:04.9]} 28... Rxd7 {[%clk
0:01:59]} 29. Rxd7+ {[%clk 0:04:04.5]} 29... Kxd7 {[%clk 0:01:58.3]} 30. Kd3
{[%clk 0:04:04.1]} 30... Kc6 {[%clk 0:01:54.7]} 31. h3 {[%clk 0:04:02.8]} 31...
Kc5 {[%clk 0:01:53]} 32. Ne3 {[%clk 0:03:57.6]} 32... h5 {[%clk 0:01:48]} 33. g4
{[%clk 0:03:56]} 33... hxg4 {[%clk 0:01:43.5]} 34. fxg4 {[%clk 0:03:55.1]} 34...
f6 {[%clk 0:01:26.5]} 35. h4 {[%clk 0:03:53.1]} 35... Be1 {[%clk 0:01:19.3]} 36.
h5 {[%clk 0:03:51.7]} 36... Bh4 {[%clk 0:01:17.9]} 37. Nc4 {[%clk 0:03:48.7]}
37... Bg5 {[%clk 0:01:14.3]} 38. Nb2 {[%clk 0:03:44.7]} 38... Bc1 {[%clk
0:01:09.7]} 39. Nd1 {[%clk 0:03:43.4]} 39... Bg5 {[%clk 0:01:03.4]} 40. Nf2
{[%clk 0:03:41.3]} 40... Bh4 {[%clk 0:00:59.6]} 41. Nh3 {[%clk 0:03:39.2]} 41...
Be1 {[%clk 0:00:57.9]} 42. Nf4 {[%clk 0:03:36.4]} 42... e5 {[%clk 0:00:51]} 43.
Ne6+ {[%clk 0:03:32.9]} 43... Kd6 {[%clk 0:00:41.1]} 44. Nxg7 {[%clk 0:03:31.6]}
44... Ke7 {[%clk 0:00:31]} 45. Kc4 {[%clk 0:03:29.1]} 45... Kf7 {[%clk
0:00:28.9]} 46. Nf5 {[%clk 0:03:28.2]} 1-0

[Event "Live Chess"]
[Site "Chess.com"]
[Date "2024.06.02"]
[Round "-"]
[White "road2gm5000"]
[Black "TheSmoulderingMaster"]
[Result "0-1"]
[WhiteElo "1103"]
[BlackElo "1778"]
[TimeControl "300"]
[EndTime "4:51:19 PDT"]
[Termination "TheSmoulderingMaster won by checkmate"]

1. e4 {[%clk 0:04:59.3]} 1... c5 {[%clk 0:04:58.3]} 2. Nf3 {[%clk 0:04:58.4]}
2... d6 {[%clk 0:04:57.2]} 3. Bb5+ {[%clk 0:04:57.9]} 3... Nd7 {[%clk
0:04:55.7]} 4. d4 {[%clk 0:04:56.1]} 4... cxd4 {[%clk 0:04:54]} 5. Nxd4 {[%clk
0:04:56]} 5... Nf6 {[%clk 0:04:53]} 6. Nc3 {[%clk 0:04:54.1]} 6... g6 {[%clk
0:04:52.1]} 7. Bg5 {[%clk 0:04:53.6]} 7... Bg7 {[%clk 0:04:51.1]} 8. Rg1 {[%clk
0:04:52.8]} 8... O-O {[%clk 0:04:50.2]} 9. Qf3 {[%clk 0:04:51.9]} 9... Ne5
{[%clk 0:04:47.7]} 10. Qe3 {[%clk 0:04:46.3]} 10... a6 {[%clk 0:04:45.8]} 11.
Ba4 {[%clk 0:04:45.2]} 11... b5 {[%clk 0:04:44.9]} 12. Bb3 {[%clk 0:04:44.3]}
12... Bb7 {[%clk 0:04:42]} 13. f3 {[%clk 0:04:42.2]} 13... Rc8 {[%clk
0:04:39.6]} 14. O-O-O {[%clk 0:04:40.1]} 14... Qa5 {[%clk 0:04:35.7]} 15. Ne6
{[%clk 0:04:10.9]} 15... fxe6 {[%clk 0:04:33]} 16. Bxe6+ {[%clk 0:04:10.8]}
16... Kh8 {[%clk 0:04:32]} 17. Bxc8 {[%clk 0:04:06.5]} 17... Rxc8 {[%clk
0:04:31]} 18. a3 {[%clk 0:04:03.1]} 18... Nc4 {[%clk 0:04:29.7]} 19. Qa7 {[%clk
0:03:57.8]} 19... Nxb2 {[%clk 0:04:21.6]} 20. Qxb7 {[%clk 0:03:47.5]} 20... Qxc3
{[%clk 0:04:20.3]} 21. Rd2 {[%clk 0:03:39.5]} 21... Nd3+ {[%clk 0:04:17.2]} 22.
Kb1 {[%clk 0:03:25.6]} 22... Qb2# {[%clk 0:04:15.3]} 0-1

[Event "Live Chess"]
[Site "Chess.com"]
[Date "2024.06.02"]
[Round "-"]
[White "McSlash1"]
[Black "PureDashingOctopus"]
[Result "0-1"]
[WhiteElo "2111"]
[BlackElo "2279"]
[TimeControl "300"]
[EndTime "4:51:29 PDT"]
[Termination "PureDashingOctopus won by resignation"]

1. e4 {[%clk 0:04:58.2]} 1... c5 {[%clk 0:04:58.5]} 2. Nc3 {[%clk 0:04:56.7]}
2... d6 {[%clk 0:04:57.3]} 3. f4 {[%clk 0:04:56.6]} 3... Nc6 {[%clk 0:04:54.9]}
4. Nf3 {[%clk 0:04:56.5]} 4... g6 {[%clk 0:04:54.3]} 5. Bc4 {[%clk 0:04:55]}
5... Bg7 {[%clk 0:04:53.1]} 6. O-O {[%clk 0:04:54.2]} 6... e6 {[%clk 0:04:51.8]}
7. f5 {[%clk 0:04:53.2]} 7... exf5 {[%clk 0:04:49.3]} 8. d3 {[%clk 0:04:50.5]}
8... Nge7 {[%clk 0:04:47.3]} 9. Qe1 {[%clk 0:04:49]} 9... O-O {[%clk 0:04:43.7]}
10. Qh4 {[%clk 0:04:47.7]} 10... Nd4 {[%clk 0:04:41.2]} 11. Ng5 {[%clk
0:04:27.2]} 11... h6 {[%clk 0:04:38.5]} 12. Nh3 {[%clk 0:04:23.5]} 12... Nec6
{[%clk 0:04:34.4]} 13. Qg3 {[%clk 0:04:20.3]} 13... Nxc2 {[%clk 0:04:32.2]} 14.
Qxg6 {[%clk 0:04:15]} 14... Nxa1 {[%clk 0:04:25]} 15. Bxh6 {[%clk 0:04:12.7]}
15... Qf6 {[%clk 0:04:23.4]} 16. Qxf6 {[%clk 0:04:09.7]} 16... Bxf6 {[%clk
0:04:22.4]} 17. Bxf8 {[%clk 0:04:08.3]} 17... Kxf8 {[%clk 0:04:19.5]} 18. Rxa1
{[%clk 0:04:06.7]} 18... Bxc3 {[%clk 0:04:08.9]} 19. bxc3 {[%clk 0:04:04.9]}
19... fxe4 {[%clk 0:04:08.6]} 20. dxe4 {[%clk 0:04:04.3]} 20... Bxh3 {[%clk
0:04:07.3]} 21. gxh3 {[%clk 0:04:03.5]} 21... Ke7 {[%clk 0:04:06.4]} 22. Rb1
{[%clk 0:04:00.9]} 22... Rg8+ {[%clk 0:04:04.5]} 23. Kh1 {[%clk 0:03:59.2]}
23... b6 {[%clk 0:04:03.7]} 24. Rf1 {[%clk 0:03:56.7]} 24... Ne5 {[%clk
0:04:01.9]} 25. Bb3 {[%clk 0:03:55.2]} 25... Rh8 {[%clk 0:03:59.9]} 26. Kg2
{[%clk 0:03:52.7]} 26... f6 {[%clk 0:03:58.2]} 27. a4 {[%clk 0:03:42.5]} 27...
Rh4 {[%clk 0:03:55.6]} 28. Kg3 {[%clk 0:03:41.1]} 28... Rxe4 {[%clk 0:03:53.2]}
29. h4 {[%clk 0:03:39.3]} 29... Re3+ {[%clk 0:03:52]} 30. Kf4 {[%clk 0:03:37.3]}
30... Rxc3 {[%clk 0:03:49.1]} 31. Bd1 {[%clk 0:03:32.8]} 31... Rh3 {[%clk
0:03:35.2]} 32. h5 {[%clk 0:03:31.2]} 32... c4 {[%clk 0:03:32.9]} 33. Rf2 {[%clk
0:03:28.5]} 33... c3 {[%clk 0:03:26.5]} 34. Bc2 {[%clk 0:03:21.4]} 34... d5
{[%clk 0:03:19.6]} 35. Kf5 {[%clk 0:03:17.9]} 35... Rxh5+ {[%clk 0:03:16.6]} 0-1

[Event "Live Chess"]
[Site "Chess.com"]
[Date "2024.06.02"]
[Round "-"]
[White "juniortay"]
[Black "Grace6363"]
[Result "1-0"]
[WhiteElo "2355"]
[BlackElo "1148"]
[TimeControl "300"]
[EndTime "4:51:56 PDT"]
[Termination "juniortay won by resignation"]

1. e4 {[%clk 0:04:58.2]} 1... c5 {[%clk 0:04:50]} 2. Nf3 {[%clk 0:04:58.1]} 2...
Nf6 {[%clk 0:04:38.4]} 3. Nc3 {[%clk 0:04:56.5]} 3... d6 {[%clk 0:04:36]} 4. d4
{[%clk 0:04:55]} 4... Nc6 {[%clk 0:04:27.9]} 5. d5 {[%clk 0:04:53.3]} 5... Bg4
{[%clk 0:04:16.7]} 6. dxc6 {[%clk 0:04:51.8]} 6... Qa5 {[%clk 0:03:51.7]} 7. Bd2
{[%clk 0:04:47.8]} 7... Qb6 {[%clk 0:03:46.6]} 8. cxb7 {[%clk 0:04:45.8]} 8...
Bxf3 {[%clk 0:03:18.3]} 9. Qxf3 {[%clk 0:04:43]} 9... c4 {[%clk 0:03:14]} 10.
bxa8=Q+ {[%clk 0:04:41.7]} 10... Kd7 {[%clk 0:03:07.3]} 11. Bxc4 {[%clk
0:04:38.5]} 1-0

[Event "Live Chess"]
[Site "Chess.com"]
[Date "2024.06.02"]
[Round "-"]
[White "CheckThis4"]
[Black "NeilDruggan73"]
[Result "1-0"]
[WhiteElo "2689"]
[BlackElo "1707"]
[TimeControl "300"]
[EndTime "4:52:14 PDT"]
[Termination "CheckThis4 won by resignation"]

1. d4 {[%clk 0:04:58.6]} 1... Nf6 {[%clk 0:04:56.1]} 2. Nc3 {[%clk 0:04:58.1]}
2... g6 {[%clk 0:04:51.1]} 3. e4 {[%clk 0:04:57]} 3... d6 {[%clk 0:04:45.5]} 4.
Be3 {[%clk 0:04:54.7]} 4... Bg7 {[%clk 0:04:43.5]} 5. Qd2 {[%clk 0:04:54]} 5...
Nc6 {[%clk 0:04:37]} 6. O-O-O {[%clk 0:04:49.9]} 6... e5 {[%clk 0:04:35.3]} 7.
d5 {[%clk 0:04:48.4]} 7... Ne7 {[%clk 0:04:34.1]} 8. f3 {[%clk 0:04:46.8]} 8...
Nh5 {[%clk 0:04:32.8]} 9. Nge2 {[%clk 0:04:44.8]} 9... O-O {[%clk 0:04:30.5]}
10. g4 {[%clk 0:04:43.5]} 10... Nf6 {[%clk 0:04:25.6]} 11. Bh6 {[%clk
0:04:41.9]} 11... a6 {[%clk 0:04:13.2]} 12. h4 {[%clk 0:04:39]} 12... Ne8 {[%clk
0:04:10.4]} 13. h5 {[%clk 0:04:36.3]} 13... f5 {[%clk 0:03:55.9]} 14. hxg6
{[%clk 0:04:31.1]} 14... f4 {[%clk 0:03:53.3]} 15. gxh7+ {[%clk 0:04:24.6]}
15... Kf7 {[%clk 0:03:44.5]} 16. Bg5 {[%clk 0:04:17.6]} 16... Rh8 {[%clk
0:03:42.8]} 17. Nxf4 {[%clk 0:04:12.5]} 17... exf4 {[%clk 0:03:39.5]} 18. Qxf4+
{[%clk 0:04:12.4]} 18... Nf6 {[%clk 0:03:38.2]} 19. Bxf6 {[%clk 0:04:04.3]}
19... Bxf6 {[%clk 0:03:34.4]} 20. g5 {[%clk 0:04:03.8]} 20... Ng6 {[%clk
0:03:27.9]} 21. Qxf6+ {[%clk 0:04:01.9]} 21... Qxf6 {[%clk 0:03:26.1]} 22. gxf6
{[%clk 0:04:01.8]} 22... Bd7 {[%clk 0:03:20.5]} 23. Bh3 {[%clk 0:03:58]} 23...
Bxh3 {[%clk 0:03:15.2]} 24. Rxh3 {[%clk 0:03:57.9]} 24... Nf4 {[%clk 0:03:13.8]}
25. Rh6 {[%clk 0:03:54.5]} 25... Rae8 {[%clk 0:03:06.7]} 26. Rg1 {[%clk
0:03:51]} 26... b5 {[%clk 0:02:38.6]} 27. Rg7+ {[%clk 0:03:48.1]} 27... Kf8
{[%clk 0:02:36]} 28. Rxc7 {[%clk 0:03:44.6]} 28... b4 {[%clk 0:02:34]} 29. Na4
{[%clk 0:03:32.5]} 29... a5 {[%clk 0:01:35.2]} 30. Nb6 {[%clk 0:03:29.2]} 30...
Nxd5 {[%clk 0:01:25.2]} 31. Nxd5 {[%clk 0:03:22.7]} 1-0

[Event "Live Chess"]
[Site "Chess.com"]
[Date "2024.06.02"]
[Round "-"]
[White "wadsy27"]
[Black "Pandreq"]
[Result "1-0"]
[WhiteElo "2596"]
[BlackElo "1234"]
[TimeControl "300"]
[EndTime "4:52:19 PDT"]
[Termination "wadsy27 won by checkmate"]

1. c4 {[%clk 0:04:56.5]} 1... e5 {[%clk 0:04:57.4]} 2. Nc3 {[%clk 0:04:56.1]}
2... Nc6 {[%clk 0:04:56.9]} 3. g3 {[%clk 0:04:54.6]} 3... d6 {[%clk 0:04:55.2]}
4. Bg2 {[%clk 0:04:54.1]} 4... Bd7 {[%clk 0:04:54.3]} 5. d3 {[%clk 0:04:53.5]}
5... Nf6 {[%clk 0:04:51.3]} 6. Nf3 {[%clk 0:04:51.4]} 6... g6 {[%clk 0:04:50]}
7. Rb1 {[%clk 0:04:49.4]} 7... Bg7 {[%clk 0:04:49]} 8. b4 {[%clk 0:04:48.6]}
8... O-O {[%clk 0:04:42.3]} 9. b5 {[%clk 0:04:47.9]} 9... Na5 {[%clk 0:04:40.8]}
10. Bg5 {[%clk 0:04:44.9]} 10... Rb8 {[%clk 0:04:38.4]} 11. O-O {[%clk 0:04:41]}
11... b6 {[%clk 0:04:36.7]} 12. Nd5 {[%clk 0:04:38.9]} 12... Be6 {[%clk
0:04:28.8]} 13. Nd2 {[%clk 0:04:21.6]} 13... Nb7 {[%clk 0:04:22.8]} 14. Ne4
{[%clk 0:04:17.6]} 14... h6 {[%clk 0:04:04]} 15. Bxf6 {[%clk 0:04:13.3]} 15...
Bxf6 {[%clk 0:03:55.6]} 16. Nexf6+ {[%clk 0:04:12.6]} 16... Kg7 {[%clk
0:03:51.1]} 17. Qd2 {[%clk 0:04:09.8]} 17... Nc5 {[%clk 0:03:47.9]} 18. f4
{[%clk 0:04:08.6]} 18... Nd7 {[%clk 0:03:42.6]} 19. Nxd7 {[%clk 0:04:07.3]}
19... Qxd7 {[%clk 0:03:41.6]} 20. fxe5 {[%clk 0:04:05]} 20... Bxd5 {[%clk
0:03:33.5]} 21. Bxd5 {[%clk 0:04:02.4]} 21... dxe5 {[%clk 0:03:32.4]} 22. Qe3
{[%clk 0:04:01.1]} 22... Rbe8 {[%clk 0:03:23.3]} 23. Rf2 {[%clk 0:03:59.8]}
23... Re7 {[%clk 0:03:17.9]} 24. Rbf1 {[%clk 0:03:59.2]} 24... f5 {[%clk
0:02:56.4]} 25. g4 {[%clk 0:03:52.4]} 25... h5 {[%clk 0:02:32.3]} 26. gxf5
{[%clk 0:03:51.3]} 26... gxf5 {[%clk 0:02:27.2]} 27. Rg2+ {[%clk 0:03:50.2]}
27... Kh7 {[%clk 0:02:17.5]} 28. Qg5 {[%clk 0:03:49.3]} 28... Kh8 {[%clk
0:01:56.7]} 29. Qh6+ {[%clk 0:03:47.5]} 29... Rh7 {[%clk 0:01:48.2]} 30. Qxf8#
{[%clk 0:03:47.4]} 1-0

[Event "Live Chess"]
[Site "Chess.com"]
[Date "2024.06.02"]
[Round "-"]
[White "ACM42"]
[Black "KyryloPoluliakh"]
[Result "1-0"]
[WhiteElo "2185"]
[BlackElo "1528"]
[TimeControl "300"]
[EndTime "4:52:23 PDT"]
[Termination "ACM42 won by checkmate"]

1. e4 {[%clk 0:04:57.1]} 1... c5 {[%clk 0:04:57]} 2. Nf3 {[%clk 0:04:55.9]} 2...
Nc6 {[%clk 0:04:56]} 3. d4 {[%clk 0:04:55.3]} 3... cxd4 {[%clk 0:04:53.9]} 4.
Nxd4 {[%clk 0:04:55.2]} 4... g6 {[%clk 0:04:52.2]} 5. Be3 {[%clk 0:04:53.7]}
5... Bg7 {[%clk 0:04:49.5]} 6. Nc3 {[%clk 0:04:52.3]} 6... Nf6 {[%clk
0:04:48.7]} 7. Nxc6 {[%clk 0:04:51.5]} 7... bxc6 {[%clk 0:04:46.9]} 8. e5 {[%clk
0:04:50.9]} 8... Ng8 {[%clk 0:04:43.8]} 9. f4 {[%clk 0:04:49.1]} 9... Nh6 {[%clk
0:04:38.5]} 10. Bd3 {[%clk 0:04:33.1]} 10... d6 {[%clk 0:04:30.4]} 11. Qf3
{[%clk 0:04:27.7]} 11... dxe5 {[%clk 0:04:15.4]} 12. O-O-O {[%clk 0:04:13.2]}
12... exf4 {[%clk 0:04:12.4]} 13. Be4 {[%clk 0:03:59.1]} 13... Qa5 {[%clk
0:03:48.5]} 14. Bxc6+ {[%clk 0:03:54.3]} 14... Kf8 {[%clk 0:03:45]} 15. Bxf4
{[%clk 0:03:29.9]} 15... Bxc3 {[%clk 0:03:41.6]} 16. Bxh6+ {[%clk 0:03:16]}
16... Kg8 {[%clk 0:03:35.9]} 17. Qxc3 {[%clk 0:03:10.6]} 17... Qxc3 {[%clk
0:03:33.7]} 18. Rd8# {[%clk 0:03:09.1]} 1-0

[Event "Live Chess"]
[Site "Chess.com"]
[Date "2024.06.02"]
[Round "-"]
[White "nigelst"]
[Black "GwaryTek"]
[Result "0-1"]
[WhiteElo "1734"]
[BlackElo "1840"]
[TimeControl "300"]
[EndTime "4:52:25 PDT"]
[Termination "GwaryTek won by resignation"]

1. e4 {[%clk 0:04:58]} 1... Nf6 {[%clk 0:04:59.6]} 2. e5 {[%clk 0:04:56.2]} 2...
Nd5 {[%clk 0:04:57.9]} 3. d4 {[%clk 0:04:55.1]} 3... d6 {[%clk 0:04:57]} 4. Bc4
{[%clk 0:04:51.2]} 4... Nb6 {[%clk 0:04:54.8]} 5. Bb3 {[%clk 0:04:50]} 5... dxe5
{[%clk 0:04:49.4]} 6. Qh5 {[%clk 0:04:47.9]} 6... e6 {[%clk 0:04:36.7]} 7. dxe5
{[%clk 0:04:44.6]} 7... Nc6 {[%clk 0:04:28.8]} 8. Nf3 {[%clk 0:04:43]} 8... a5
{[%clk 0:04:26.6]} 9. a4 {[%clk 0:04:39.7]} 9... g6 {[%clk 0:04:15.3]} 10. Qg4
{[%clk 0:04:34.2]} 10... Bg7 {[%clk 0:04:14.4]} 11. Bg5 {[%clk 0:04:30.6]} 11...
Qd7 {[%clk 0:03:45.9]} 12. Bf6 {[%clk 0:04:24.5]} 12... Bxf6 {[%clk 0:03:40.5]}
13. exf6 {[%clk 0:04:22.9]} 13... Nd5 {[%clk 0:03:37.8]} 14. Bxd5 {[%clk
0:04:10.9]} 14... exd5 {[%clk 0:03:32.7]} 15. O-O {[%clk 0:04:07.1]} 15... Qxg4
{[%clk 0:03:30.1]} 0-1